[Event "Early-Titled-Tuesday-Blitz-February-20-2024"]
[Site "Chess.com"]
[Date "2024.02.20"]
[Round "1"]
[White "ajedrezsinlimites"]
[Black "NCchamp"]
[Result "1-0"]
[WhiteElo "2637"]
[BlackElo "2296"]
[TimeControl "180+1"]
[EndTime "8:04:48 PST"]
[Termination "ajedrezsinlimites won by resignation"]

1. e4 {[%clk 0:03:00.9]} 1... c6 {[%clk 0:02:52]} 2. d4 {[%clk 0:03:00.3]} 2...
d5 {[%clk 0:02:52.9]} 3. exd5 {[%clk 0:03:00.5]} 3... cxd5 {[%clk 0:02:53.8]} 4.
c3 {[%clk 0:03:01.2]} 4... Nc6 {[%clk 0:02:52.9]} 5. Bf4 {[%clk 0:03:01.2]} 5...
Nf6 {[%clk 0:02:53.3]} 6. Bd3 {[%clk 0:03:01.4]} 6... g6 {[%clk 0:02:53.9]} 7.
Nf3 {[%clk 0:03:01.1]} 7... Bf5 {[%clk 0:02:54.5]} 8. h3 {[%clk 0:03:01.1]} 8...
Bxd3 {[%clk 0:02:43.6]} 9. Qxd3 {[%clk 0:03:00.6]} 9... Bg7 {[%clk 0:02:43.9]}
10. Nbd2 {[%clk 0:03:00.1]} 10... O-O {[%clk 0:02:39.3]} 11. O-O {[%clk
0:03:00.5]} 11... a6 {[%clk 0:02:37]} 12. Rfe1 {[%clk 0:03:00.7]} 12... b5
{[%clk 0:02:35.3]} 13. b4 {[%clk 0:02:59.1]} 13... Qb6 {[%clk 0:02:32.1]} 14. a4
{[%clk 0:02:58.6]} 14... bxa4 {[%clk 0:02:19.8]} 15. Rxa4 {[%clk 0:02:59.5]}
15... Rfe8 {[%clk 0:02:17.2]} 16. Nb3 {[%clk 0:02:58.5]} 16... Nd7 {[%clk
0:02:15]} 17. Nc5 {[%clk 0:02:57.1]} 17... Nxc5 {[%clk 0:01:59.8]} 18. bxc5
{[%clk 0:02:57.1]} 18... Qb5 {[%clk 0:01:50.4]} 19. Qc2 {[%clk 0:02:56.3]} 19...
e5 {[%clk 0:01:24.7]} 20. Rb1 {[%clk 0:02:54.6]} 20... exf4 {[%clk 0:01:16.8]}
21. Rxb5 {[%clk 0:02:53.6]} 21... axb5 {[%clk 0:01:17.7]} 22. Rxa8 {[%clk
0:02:53.7]} 22... Rxa8 {[%clk 0:01:18.6]} 23. Qb3 {[%clk 0:02:53.3]} 23... b4
{[%clk 0:01:00.9]} 24. cxb4 {[%clk 0:02:44.4]} 24... Rb8 {[%clk 0:00:58.5]} 25.
b5 {[%clk 0:02:41.3]} 25... Nxd4 {[%clk 0:00:57.9]} 26. Nxd4 {[%clk 0:02:40.9]}
26... Bxd4 {[%clk 0:00:58.8]} 27. Qxd5 {[%clk 0:02:41.3]} 27... Bf6 {[%clk
0:00:42.5]} 28. b6 {[%clk 0:02:40]} 28... Kg7 {[%clk 0:00:39.4]} 29. Qd6 {[%clk
0:02:28.1]} 29... Rd8 {[%clk 0:00:39.2]} 30. Qc7 {[%clk 0:02:26.7]} 30... Rd1+
{[%clk 0:00:37.2]} 31. Kh2 {[%clk 0:02:26.2]} 31... Re1 {[%clk 0:00:36.6]} 32.
b7 {[%clk 0:02:25.5]} 32... Be5 {[%clk 0:00:36.6]} 33. b8=Q {[%clk 0:02:25.3]}
33... Bxc7 {[%clk 0:00:34.9]} 34. Qxc7 {[%clk 0:02:26.2]} 34... g5 {[%clk
0:00:33.8]} 35. c6 {[%clk 0:02:25.9]} 35... h5 {[%clk 0:00:33.6]} 36. Qa5 {[%clk
0:02:24.8]} 36... Rc1 {[%clk 0:00:31.9]} 37. Qxg5+ {[%clk 0:02:25]} 1-0

[Event "Early-Titled-Tuesday-Blitz-February-20-2024"]
[Site "Chess.com"]
[Date "2024.02.20"]
[Round "1"]
[White "Chessdreamer2020"]
[Black "abeljusto"]
[Result "1-0"]
[WhiteElo "2555"]
[BlackElo "2084"]
[TimeControl "180+1"]
[EndTime "8:04:51 PST"]
[Termination "Chessdreamer2020 won by checkmate"]

1. e4 {[%clk 0:02:59.9]} 1... c5 {[%clk 0:01:58.8]} 2. Nf3 {[%clk 0:02:58.5]}
2... Nc6 {[%clk 0:01:56.9]} 3. Bb5 {[%clk 0:02:51.6]} 3... g6 {[%clk 0:01:55.5]}
4. O-O {[%clk 0:02:51.8]} 4... Bg7 {[%clk 0:01:52]} 5. c3 {[%clk 0:02:52.1]}
5... Nf6 {[%clk 0:01:48.6]} 6. Qa4 {[%clk 0:02:52.2]} 6... O-O {[%clk 0:01:42]}
7. d4 {[%clk 0:02:51.8]} 7... cxd4 {[%clk 0:01:24.1]} 8. cxd4 {[%clk 0:02:52.7]}
8... Nxe4 {[%clk 0:01:13.9]} 9. d5 {[%clk 0:02:52.5]} 9... Nc5 {[%clk
0:01:13.8]} 10. Qa3 {[%clk 0:02:52.8]} 10... Qb6 {[%clk 0:01:08.8]} 11. Nc3
{[%clk 0:02:53.2]} 11... Nd4 {[%clk 0:01:01]} 12. Nxd4 {[%clk 0:02:52.7]} 12...
Bxd4 {[%clk 0:01:01.6]} 13. Bh6 {[%clk 0:02:53.3]} 13... Bxc3 {[%clk 0:00:22.1]}
14. Qxc3 {[%clk 0:02:52.6]} 14... f6 {[%clk 0:00:18.5]} 15. Bxf8 {[%clk
0:02:52.8]} 15... Kxf8 {[%clk 0:00:17.1]} 16. Bc4 {[%clk 0:02:48]} 16... d6
{[%clk 0:00:16.9]} 17. b4 {[%clk 0:02:45.5]} 17... Nd7 {[%clk 0:00:15.8]} 18.
Kh1 {[%clk 0:02:34.2]} 18... a6 {[%clk 0:00:12.9]} 19. Rfe1 {[%clk 0:02:32.5]}
19... Qd8 {[%clk 0:00:11.4]} 20. Re3 {[%clk 0:02:23.5]} 20... b5 {[%clk
0:00:10.9]} 21. Bb3 {[%clk 0:02:22.6]} 21... Bb7 {[%clk 0:00:11.3]} 22. Rae1
{[%clk 0:02:21.6]} 22... Nb6 {[%clk 0:00:08.6]} 23. Rxe7 {[%clk 0:02:19.4]}
23... Nxd5 {[%clk 0:00:06.9]} 24. Bxd5 {[%clk 0:02:19.1]} 24... Bxd5 {[%clk
0:00:05.9]} 25. Qxf6+ {[%clk 0:02:19.1]} 25... Kg8 {[%clk 0:00:02.8]} 26. Qg7#
{[%clk 0:02:19.4]} 1-0

[Event "Early-Titled-Tuesday-Blitz-February-20-2024"]
[Site "Chess.com"]
[Date "2024.02.20"]
[Round "1"]
[White "viktorskliarov"]
[Black "ajedrez-facil"]
[Result "1/2-1/2"]
[WhiteElo "2591"]
[BlackElo "2230"]
[TimeControl "180+1"]
[EndTime "8:04:57 PST"]
[Termination "Game drawn by agreement"]

1. e4 {[%clk 0:03:00.9]} 1... c5 {[%clk 0:02:56]} 2. Nf3 {[%clk 0:03:00.9]} 2...
d6 {[%clk 0:02:54.6]} 3. d4 {[%clk 0:03:00.9]} 3... cxd4 {[%clk 0:02:53]} 4.
Qxd4 {[%clk 0:03:01.8]} 4... a6 {[%clk 0:02:51.8]} 5. Be3 {[%clk 0:03:01.6]}
5... Nf6 {[%clk 0:02:50.4]} 6. Nc3 {[%clk 0:03:01.3]} 6... Nc6 {[%clk
0:02:50.6]} 7. Qd2 {[%clk 0:03:01.2]} 7... g6 {[%clk 0:02:50.9]} 8. O-O-O {[%clk
0:03:00]} 8... Qa5 {[%clk 0:02:49.4]} 9. Kb1 {[%clk 0:02:43]} 9... Be6 {[%clk
0:02:47]} 10. Nd5 {[%clk 0:02:31.4]} 10... Qxd2 {[%clk 0:02:44.5]} 11. Nxf6+
{[%clk 0:02:28.1]} 11... exf6 {[%clk 0:02:39.2]} 12. Rxd2 {[%clk 0:02:26.7]}
12... Be7 {[%clk 0:02:37.4]} 13. Nd4 {[%clk 0:02:10.6]} 13... Nxd4 {[%clk
0:02:35.7]} 14. Bxd4 {[%clk 0:02:09.7]} 14... O-O-O {[%clk 0:02:33.7]} 15. c4
{[%clk 0:01:58.3]} 15... Rd7 {[%clk 0:02:33]} 16. b3 {[%clk 0:01:40.6]} 16...
Re8 {[%clk 0:02:28.6]} 17. f3 {[%clk 0:01:26.6]} 17... f5 {[%clk 0:02:27.6]} 18.
Bd3 {[%clk 0:01:26]} 18... fxe4 {[%clk 0:02:26.6]} 19. Bxe4 {[%clk 0:01:17.7]}
19... f5 {[%clk 0:02:26.3]} 20. Bc2 {[%clk 0:01:14.1]} 20... Bg5 {[%clk
0:02:24.4]} 21. Re2 {[%clk 0:01:11.9]} 21... Bf7 {[%clk 0:02:19.1]} 22. Rhe1
{[%clk 0:01:10.8]} 22... Rxe2 {[%clk 0:02:17.1]} 23. Rxe2 {[%clk 0:01:11.7]}
23... Re7 {[%clk 0:02:16.3]} 24. Rxe7 {[%clk 0:01:10.4]} 24... Bxe7 {[%clk
0:02:16.1]} 25. g4 {[%clk 0:01:07.1]} 25... fxg4 {[%clk 0:02:15.6]} 26. fxg4
{[%clk 0:01:07.1]} 26... Be6 {[%clk 0:02:11.9]} 27. h3 {[%clk 0:01:07]} 27... h5
{[%clk 0:02:04.4]} 28. Bxg6 {[%clk 0:00:57]} 28... hxg4 {[%clk 0:02:03.8]} 29.
hxg4 {[%clk 0:00:57.9]} 29... Bxg4 {[%clk 0:02:03.4]} 30. Be4 {[%clk 0:00:55.8]}
30... Bd7 {[%clk 0:01:59.9]} 31. Kc2 {[%clk 0:00:54.5]} 31... Bc6 {[%clk
0:02:00.5]} 32. Kd3 {[%clk 0:00:52.8]} 32... Kd7 {[%clk 0:02:00.9]} 33. a4
{[%clk 0:00:42.4]} 33... Ke6 {[%clk 0:01:58.4]} 34. Bc3 {[%clk 0:00:36.6]}
1/2-1/2

[Event "Early-Titled-Tuesday-Blitz-February-20-2024"]
[Site "Chess.com"]
[Date "2024.02.20"]
[Round "1"]
[White "Makswolf200817"]
[Black "Kotofeyca"]
[Result "1-0"]
[WhiteElo "2738"]
[BlackElo "2402"]
[TimeControl "180+1"]
[EndTime "8:05:03 PST"]
[Termination "Makswolf200817 won by resignation"]

1. e4 {[%clk 0:03:00.9]} 1... c5 {[%clk 0:02:57.3]} 2. Nf3 {[%clk 0:02:59.7]}
2... d6 {[%clk 0:02:57]} 3. c3 {[%clk 0:02:55.6]} 3... Nf6 {[%clk 0:02:56.8]} 4.
h3 {[%clk 0:02:55.4]} 4... Nc6 {[%clk 0:02:55.8]} 5. Bd3 {[%clk 0:02:54.5]} 5...
e6 {[%clk 0:02:45.1]} 6. O-O {[%clk 0:02:54.1]} 6... Be7 {[%clk 0:02:43]} 7. Bc2
{[%clk 0:02:53.4]} 7... d5 {[%clk 0:02:39]} 8. e5 {[%clk 0:02:50.8]} 8... Nd7
{[%clk 0:02:38.8]} 9. d4 {[%clk 0:02:51.4]} 9... b6 {[%clk 0:02:24.6]} 10. Re1
{[%clk 0:02:45.6]} 10... Qc7 {[%clk 0:02:23.5]} 11. a3 {[%clk 0:02:44.2]} 11...
Ba6 {[%clk 0:02:22.3]} 12. b4 {[%clk 0:02:41.1]} 12... cxd4 {[%clk 0:02:21.4]}
13. cxd4 {[%clk 0:02:41.1]} 13... Bc4 {[%clk 0:02:19.4]} 14. Nbd2 {[%clk
0:02:40.1]} 14... b5 {[%clk 0:02:17.1]} 15. Nxc4 {[%clk 0:02:32]} 15... bxc4
{[%clk 0:02:12.2]} 16. Bg5 {[%clk 0:02:26.5]} 16... Nb6 {[%clk 0:01:50.8]} 17.
Qd2 {[%clk 0:02:20.9]} 17... h6 {[%clk 0:01:47.6]} 18. Bxe7 {[%clk 0:02:19.3]}
18... Qxe7 {[%clk 0:01:48.5]} 19. b5 {[%clk 0:02:18.4]} 19... Nd8 {[%clk
0:01:31.9]} 20. a4 {[%clk 0:02:18.9]} 20... a5 {[%clk 0:01:26.3]} 21. bxa6
{[%clk 0:02:08.8]} 21... Rxa6 {[%clk 0:01:22.3]} 22. a5 {[%clk 0:02:07]} 22...
Nd7 {[%clk 0:01:17.4]} 23. Ba4 {[%clk 0:02:06.1]} 23... O-O {[%clk 0:01:17]} 24.
Reb1 {[%clk 0:02:02.4]} 24... Nb8 {[%clk 0:01:06.3]} 25. Rxb8 {[%clk 0:02:00.4]}
25... Qc7 {[%clk 0:01:00.9]} 26. Rb5 {[%clk 0:01:47.1]} 26... Nc6 {[%clk
0:01:00.3]} 27. Rc5 {[%clk 0:01:45]} 27... Qa7 {[%clk 0:00:49.3]} 28. Bxc6
{[%clk 0:01:42]} 28... Rc8 {[%clk 0:00:45.7]} 29. Bb5 {[%clk 0:01:38.5]} 1-0

[Event "Early-Titled-Tuesday-Blitz-February-20-2024"]
[Site "Chess.com"]
[Date "2024.02.20"]
[Round "1"]
[White "AnaKuchava"]
[Black "xakevicius91"]
[Result "0-1"]
[WhiteElo "2207"]
[BlackElo "2594"]
[TimeControl "180+1"]
[EndTime "8:05:04 PST"]
[Termination "xakevicius91 won on time"]

1. d4 {[%clk 0:02:58.5]} 1... Nf6 {[%clk 0:02:59.5]} 2. Nf3 {[%clk 0:02:56.2]}
2... e6 {[%clk 0:02:59.5]} 3. c4 {[%clk 0:02:54.1]} 3... b6 {[%clk 0:02:59.4]}
4. a3 {[%clk 0:02:46.5]} 4... Bb7 {[%clk 0:02:58.4]} 5. Nc3 {[%clk 0:02:40.7]}
5... d5 {[%clk 0:02:55.3]} 6. cxd5 {[%clk 0:02:33.5]} 6... Nxd5 {[%clk
0:02:56.2]} 7. e3 {[%clk 0:02:33.2]} 7... Nxc3 {[%clk 0:02:51.3]} 8. bxc3 {[%clk
0:02:30]} 8... Nd7 {[%clk 0:02:49.8]} 9. Bd3 {[%clk 0:02:20.3]} 9... Bd6 {[%clk
0:02:49]} 10. O-O {[%clk 0:02:08.4]} 10... O-O {[%clk 0:02:46.4]} 11. Bb2 {[%clk
0:02:00]} 11... Qe7 {[%clk 0:02:45.2]} 12. Qe2 {[%clk 0:01:50.5]} 12... e5
{[%clk 0:02:36.3]} 13. e4 {[%clk 0:01:43.2]} 13... c5 {[%clk 0:02:33.3]} 14. d5
{[%clk 0:01:36.8]} 14... Rac8 {[%clk 0:02:29.1]} 15. c4 {[%clk 0:01:20.5]} 15...
g6 {[%clk 0:02:28.6]} 16. a4 {[%clk 0:01:13.4]} 16... a5 {[%clk 0:02:28.5]} 17.
Rab1 {[%clk 0:01:06.1]} 17... Rce8 {[%clk 0:02:28.4]} 18. Bc3 {[%clk 0:00:45.3]}
18... Bc8 {[%clk 0:02:28.1]} 19. Qd2 {[%clk 0:00:34.2]} 19... Kg7 {[%clk
0:02:27.5]} 20. Ne1 {[%clk 0:00:18.2]} 20... g5 {[%clk 0:02:26]} 21. Nc2 {[%clk
0:00:17.5]} 21... Bc7 {[%clk 0:02:25.7]} 22. Ne3 {[%clk 0:00:17.5]} 22... Nb8
{[%clk 0:02:20.7]} 23. Nf5+ {[%clk 0:00:09.2]} 23... Bxf5 {[%clk 0:02:19.7]} 24.
exf5 {[%clk 0:00:10.1]} 24... Nd7 {[%clk 0:02:18.4]} 25. f6+ {[%clk 0:00:06.3]}
25... Qxf6 {[%clk 0:02:16.3]} 26. Kh1 {[%clk 0:00:02.8]} 26... Qf4 {[%clk
0:02:15.2]} 27. Qb2 {[%clk 0:00:02.1]} 27... f6 {[%clk 0:02:13.9]} 28. g3 {[%clk
0:00:01.8]} 28... Qf3+ {[%clk 0:02:14.2]} 29. Kg1 {[%clk 0:00:01.3]} 29... Qxd3
{[%clk 0:02:15.1]} 0-1

[Event "Early-Titled-Tuesday-Blitz-February-20-2024"]
[Site "Chess.com"]
[Date "2024.02.20"]
[Round "1"]
[White "colegiodemadrid"]
[Black "Angry_Twin"]
[Result "0-1"]
[WhiteElo "2521"]
[BlackElo "2980"]
[TimeControl "180+1"]
[EndTime "8:05:09 PST"]
[Termination "Angry_Twin won by checkmate"]

1. e4 {[%clk 0:03:00.9]} 1... c5 {[%clk 0:02:59.9]} 2. Nf3 {[%clk 0:03:00.5]}
2... d6 {[%clk 0:03:00.6]} 3. d4 {[%clk 0:03:01.1]} 3... cxd4 {[%clk 0:03:01.5]}
4. Nxd4 {[%clk 0:03:01.6]} 4... Nf6 {[%clk 0:03:01.9]} 5. Nc3 {[%clk 0:03:02.1]}
5... a6 {[%clk 0:03:02.3]} 6. Bg5 {[%clk 0:03:02.4]} 6... e6 {[%clk 0:02:58.4]}
7. f4 {[%clk 0:03:02.9]} 7... h6 {[%clk 0:02:58.2]} 8. Bh4 {[%clk 0:03:02]} 8...
Nbd7 {[%clk 0:02:56.7]} 9. Qf3 {[%clk 0:03:00.5]} 9... e5 {[%clk 0:02:57]} 10.
Nf5 {[%clk 0:02:48.6]} 10... exf4 {[%clk 0:02:44.8]} 11. O-O-O {[%clk
0:02:46.3]} 11... g5 {[%clk 0:02:41.2]} 12. Bf2 {[%clk 0:02:38.7]} 12... Ne5
{[%clk 0:02:41]} 13. Qe2 {[%clk 0:02:38.7]} 13... Bxf5 {[%clk 0:02:35.7]} 14.
exf5 {[%clk 0:02:38.4]} 14... Bg7 {[%clk 0:02:26.6]} 15. h4 {[%clk 0:02:37]}
15... O-O {[%clk 0:02:24.6]} 16. hxg5 {[%clk 0:02:36.1]} 16... hxg5 {[%clk
0:02:25]} 17. Bd4 {[%clk 0:02:29.6]} 17... Re8 {[%clk 0:02:23.3]} 18. Bxe5
{[%clk 0:02:22.7]} 18... Rxe5 {[%clk 0:02:21.8]} 19. Qf3 {[%clk 0:02:23.3]}
19... Qb6 {[%clk 0:02:19.8]} 20. Bd3 {[%clk 0:02:20.2]} 20... Rc8 {[%clk
0:02:06.8]} 21. Ne4 {[%clk 0:02:05.4]} 21... Nxe4 {[%clk 0:01:23.4]} 22. Bxe4
{[%clk 0:02:05.3]} 22... Ra5 {[%clk 0:01:23.6]} 23. f6 {[%clk 0:01:48.9]} 23...
Bxf6 {[%clk 0:01:23.2]} 24. b3 {[%clk 0:01:12.6]} 24... Rxa2 {[%clk 0:01:21.5]}
25. Qh3 {[%clk 0:00:50.1]} 25... Ra1+ {[%clk 0:01:17.7]} 26. Kd2 {[%clk
0:00:50.2]} 26... Qf2+ {[%clk 0:01:18.3]} 27. Kd3 {[%clk 0:00:47.1]} 27... Rc3#
{[%clk 0:01:19]} 0-1

[Event "Early-Titled-Tuesday-Blitz-February-20-2024"]
[Site "Chess.com"]
[Date "2024.02.20"]
[Round "1"]
[White "Muslim_player_05"]
[Black "klimkoj"]
[Result "0-1"]
[WhiteElo "2486"]
[BlackElo "2874"]
[TimeControl "180+1"]
[EndTime "8:05:14 PST"]
[Termination "klimkoj won on time"]

1. d4 {[%clk 0:03:00.9]} 1... Nf6 {[%clk 0:02:59.6]} 2. c4 {[%clk 0:03:01]} 2...
g6 {[%clk 0:02:59.9]} 3. Nc3 {[%clk 0:03:00.7]} 3... d5 {[%clk 0:02:59.8]} 4.
cxd5 {[%clk 0:03:01.6]} 4... Nxd5 {[%clk 0:03:00.5]} 5. e4 {[%clk 0:03:02.2]}
5... Nxc3 {[%clk 0:03:00.4]} 6. bxc3 {[%clk 0:03:03.1]} 6... Bg7 {[%clk
0:03:00.6]} 7. Be3 {[%clk 0:03:02.5]} 7... c5 {[%clk 0:03:00.7]} 8. Qd2 {[%clk
0:03:02.9]} 8... Qa5 {[%clk 0:03:00.3]} 9. Nf3 {[%clk 0:03:02.4]} 9... Nc6
{[%clk 0:03:00.1]} 10. Rb1 {[%clk 0:03:02]} 10... a6 {[%clk 0:03:00.2]} 11. Rc1
{[%clk 0:03:00.5]} 11... cxd4 {[%clk 0:02:57.8]} 12. cxd4 {[%clk 0:03:01]} 12...
Qxd2+ {[%clk 0:02:58.4]} 13. Kxd2 {[%clk 0:03:01.6]} 13... e6 {[%clk 0:02:41.5]}
14. h4 {[%clk 0:03:00]} 14... O-O {[%clk 0:02:32.9]} 15. Bd3 {[%clk 0:02:40.8]}
15... Rd8 {[%clk 0:02:31.7]} 16. Rc4 {[%clk 0:01:52]} 16... Bd7 {[%clk
0:01:58.3]} 17. h5 {[%clk 0:01:14.5]} 17... b5 {[%clk 0:01:42.1]} 0-1

[Event "Early-Titled-Tuesday-Blitz-February-20-2024"]
[Site "Chess.com"]
[Date "2024.02.20"]
[Round "1"]
[White "RantomOpening"]
[Black "HittingRookBottom"]
[Result "1-0"]
[WhiteElo "2551"]
[BlackElo "2015"]
[TimeControl "180+1"]
[EndTime "8:05:15 PST"]
[Termination "RantomOpening won by checkmate"]

1. b3 {[%clk 0:02:59.6]} 1... c6 {[%clk 0:03:00.2]} 2. Bb2 {[%clk 0:02:59.8]}
2... d5 {[%clk 0:03:00.9]} 3. e3 {[%clk 0:03:00]} 3... Nf6 {[%clk 0:03:01.2]} 4.
Nf3 {[%clk 0:03:00.4]} 4... Bg4 {[%clk 0:03:01.3]} 5. c4 {[%clk 0:03:00.2]} 5...
e6 {[%clk 0:03:00.3]} 6. Nc3 {[%clk 0:03:00.1]} 6... Nbd7 {[%clk 0:03:00.1]} 7.
d4 {[%clk 0:03:00.3]} 7... Bb4 {[%clk 0:03:00]} 8. Qc2 {[%clk 0:02:58]} 8... Qa5
{[%clk 0:02:47.9]} 9. a3 {[%clk 0:02:53.4]} 9... Bxc3+ {[%clk 0:02:47.4]} 10.
Bxc3 {[%clk 0:02:53.3]} 10... Qc7 {[%clk 0:02:47.8]} 11. Bd3 {[%clk 0:02:52.7]}
11... Bh5 {[%clk 0:02:33.5]} 12. Ne5 {[%clk 0:02:50.6]} 12... Nxe5 {[%clk
0:02:30.8]} 13. dxe5 {[%clk 0:02:51.5]} 13... Nd7 {[%clk 0:02:31.3]} 14. f4
{[%clk 0:02:51.6]} 14... Bg6 {[%clk 0:02:31.3]} 15. O-O {[%clk 0:02:04.9]} 15...
Bxd3 {[%clk 0:02:30.5]} 16. Qxd3 {[%clk 0:02:05.8]} 16... Nc5 {[%clk 0:02:31]}
17. Qc2 {[%clk 0:02:05.5]} 17... Ne4 {[%clk 0:02:31.1]} 18. b4 {[%clk
0:01:54.9]} 18... a6 {[%clk 0:02:29.1]} 19. Bd4 {[%clk 0:01:53.8]} 19... O-O
{[%clk 0:02:24.8]} 20. cxd5 {[%clk 0:01:51.2]} 20... exd5 {[%clk 0:02:23.1]} 21.
f5 {[%clk 0:01:50.2]} 21... b6 {[%clk 0:02:06.8]} 22. Rac1 {[%clk 0:01:49.2]}
22... Rac8 {[%clk 0:02:06.5]} 23. f6 {[%clk 0:01:45.1]} 23... c5 {[%clk
0:02:02.6]} 24. Qe2 {[%clk 0:01:44.3]} 24... cxd4 {[%clk 0:01:44.7]} 25. Rxc7
{[%clk 0:01:43.7]} 25... Rxc7 {[%clk 0:01:45]} 26. exd4 {[%clk 0:01:29.5]} 26...
Rfc8 {[%clk 0:01:41.3]} 27. Qg4 {[%clk 0:01:27.3]} 27... g6 {[%clk 0:01:37.9]}
28. Qf4 {[%clk 0:01:26.1]} 28... Kf8 {[%clk 0:01:10.2]} 29. Qh6+ {[%clk
0:01:22.8]} 29... Ke8 {[%clk 0:01:10.3]} 30. Qxh7 {[%clk 0:01:22.7]} 30... Rc1
{[%clk 0:01:08.2]} 31. Qg8+ {[%clk 0:01:22]} 31... Kd7 {[%clk 0:01:08.1]} 32.
Qxf7+ {[%clk 0:01:22.4]} 32... Kd8 {[%clk 0:01:07.5]} 33. Qxd5+ {[%clk
0:01:22.4]} 33... Ke8 {[%clk 0:01:06.3]} 34. Qe6+ {[%clk 0:01:18.2]} 34... Kf8
{[%clk 0:01:03.6]} 35. Qe7+ {[%clk 0:01:19.1]} 35... Kg8 {[%clk 0:01:04]} 36.
Qg7# {[%clk 0:01:20]} 1-0

[Event "Early-Titled-Tuesday-Blitz-February-20-2024"]
[Site "Chess.com"]
[Date "2024.02.20"]
[Round "1"]
[White "Sina_Movahed"]
[Black "Kaua18"]
[Result "1-0"]
[WhiteElo "2961"]
[BlackElo "2514"]
[TimeControl "180+1"]
[EndTime "8:05:16 PST"]
[Termination "Sina_Movahed won by resignation"]

1. e4 {[%clk 0:03:00.9]} 1... c6 {[%clk 0:02:57.7]} 2. d4 {[%clk 0:03:00.7]}
2... d5 {[%clk 0:02:57]} 3. e5 {[%clk 0:03:01.2]} 3... Bf5 {[%clk 0:02:56]} 4.
h4 {[%clk 0:03:01.7]} 4... h5 {[%clk 0:02:54.6]} 5. Bg5 {[%clk 0:03:02.2]} 5...
Qb6 {[%clk 0:02:52.5]} 6. Bd3 {[%clk 0:03:01.9]} 6... Bxd3 {[%clk 0:02:51.7]} 7.
Qxd3 {[%clk 0:03:02.8]} 7... e6 {[%clk 0:02:51.7]} 8. Nd2 {[%clk 0:03:01.1]}
8... Qa6 {[%clk 0:02:52]} 9. c4 {[%clk 0:03:00.7]} 9... Ne7 {[%clk 0:02:47.1]}
10. Ne2 {[%clk 0:02:53.2]} 10... Nf5 {[%clk 0:02:45.8]} 11. O-O {[%clk
0:02:52.1]} 11... Nd7 {[%clk 0:02:42.5]} 12. Ng3 {[%clk 0:02:51.4]} 12... g6
{[%clk 0:02:27.7]} 13. Qc3 {[%clk 0:02:41.3]} 13... Bh6 {[%clk 0:02:07.8]} 14.
Nxf5 {[%clk 0:02:35.3]} 14... gxf5 {[%clk 0:02:07.2]} 15. cxd5 {[%clk
0:02:35.6]} 15... cxd5 {[%clk 0:02:05.3]} 16. Rfc1 {[%clk 0:02:20.4]} 16... Bxg5
{[%clk 0:01:29.2]} 17. hxg5 {[%clk 0:02:21.3]} 17... Qb6 {[%clk 0:01:22.3]} 18.
b4 {[%clk 0:02:12.3]} 18... Ke7 {[%clk 0:01:20.1]} 19. Nb3 {[%clk 0:02:11.6]}
19... Rac8 {[%clk 0:01:16.4]} 20. Nc5 {[%clk 0:02:10.6]} 20... Nxc5 {[%clk
0:01:15.6]} 21. bxc5 {[%clk 0:02:11.5]} 21... Qc7 {[%clk 0:01:06.5]} 22. Rab1
{[%clk 0:02:08.5]} 22... Rb8 {[%clk 0:01:01.3]} 23. Qa3 {[%clk 0:02:07.3]} 23...
a6 {[%clk 0:00:54.4]} 24. c6+ {[%clk 0:02:05.7]} 24... Kd8 {[%clk 0:00:51.3]}
25. cxb7 {[%clk 0:02:04.4]} 25... Qd7 {[%clk 0:00:49.2]} 26. Qa5+ {[%clk
0:02:02.5]} 26... Ke8 {[%clk 0:00:46.9]} 27. Rc7 {[%clk 0:02:03.1]} 27... Qd8
{[%clk 0:00:44.4]} 28. Qc5 {[%clk 0:02:01.9]} 28... h4 {[%clk 0:00:21.3]} 29.
Rc8 {[%clk 0:01:49.2]} 1-0

[Event "Early-Titled-Tuesday-Blitz-February-20-2024"]
[Site "Chess.com"]
[Date "2024.02.20"]
[Round "1"]
[White "Jojo_898"]
[Black "maciek_92"]
[Result "0-1"]
[WhiteElo "2457"]
[BlackElo "2811"]
[TimeControl "180+1"]
[EndTime "8:05:17 PST"]
[Termination "maciek_92 won by checkmate"]

1. e4 {[%clk 0:03:00.9]} 1... c5 {[%clk 0:02:59.5]} 2. Nf3 {[%clk 0:03:01]} 2...
e6 {[%clk 0:02:52.1]} 3. c3 {[%clk 0:03:00.2]} 3... Nf6 {[%clk 0:02:48.2]} 4.
Bd3 {[%clk 0:02:57.9]} 4... Nc6 {[%clk 0:02:34.4]} 5. O-O {[%clk 0:02:57.8]}
5... a6 {[%clk 0:02:31.6]} 6. a4 {[%clk 0:02:56.3]} 6... Qc7 {[%clk 0:02:31.6]}
7. Bc2 {[%clk 0:02:53.9]} 7... d5 {[%clk 0:02:31.6]} 8. d3 {[%clk 0:02:42.9]}
8... Be7 {[%clk 0:02:31]} 9. Be3 {[%clk 0:02:38.4]} 9... O-O {[%clk 0:02:30.8]}
10. Nbd2 {[%clk 0:02:38.1]} 10... Ng4 {[%clk 0:02:25.7]} 11. d4 {[%clk
0:02:30.2]} 11... cxd4 {[%clk 0:02:12.6]} 12. Bxd4 {[%clk 0:02:25.5]} 12... e5
{[%clk 0:02:03.1]} 13. Be3 {[%clk 0:02:21.9]} 13... d4 {[%clk 0:02:03.2]} 14.
Bg5 {[%clk 0:02:16.9]} 14... dxc3 {[%clk 0:02:01.5]} 15. bxc3 {[%clk 0:02:16.7]}
15... Rd8 {[%clk 0:02:00]} 16. Qe2 {[%clk 0:02:07.4]} 16... Bxg5 {[%clk
0:01:57.3]} 17. Nxg5 {[%clk 0:02:07.3]} 17... h6 {[%clk 0:01:58]} 18. Ngf3
{[%clk 0:02:07.1]} 18... Be6 {[%clk 0:01:55.1]} 19. Rab1 {[%clk 0:01:59.5]}
19... Na5 {[%clk 0:01:49.5]} 20. h3 {[%clk 0:01:54.4]} 20... Nf6 {[%clk
0:01:49.2]} 21. Nb3 {[%clk 0:01:49.1]} 21... Bc4 {[%clk 0:01:47.7]} 22. Qe3
{[%clk 0:01:43.8]} 22... Bxf1 {[%clk 0:01:46.3]} 23. Kxf1 {[%clk 0:01:44.7]}
23... Nc4 {[%clk 0:01:40.1]} 24. Qe2 {[%clk 0:01:42.2]} 24... Na3 {[%clk
0:01:39.6]} 25. Rc1 {[%clk 0:01:42.6]} 25... Qxc3 {[%clk 0:01:36.8]} 26. Bd1
{[%clk 0:01:33.1]} 26... Qb4 {[%clk 0:01:35.3]} 27. Nc5 {[%clk 0:01:32.6]} 27...
Rac8 {[%clk 0:01:32.3]} 28. Qe3 {[%clk 0:01:30.7]} 28... Nxe4 {[%clk 0:01:16]}
29. Nxe4 {[%clk 0:01:22.2]} 29... Rxc1 {[%clk 0:01:14.5]} 30. Qxc1 {[%clk
0:01:23.1]} 30... Qxe4 {[%clk 0:01:13.5]} 31. Be2 {[%clk 0:01:18.2]} 31... Qb1
{[%clk 0:01:07]} 32. Qxb1 {[%clk 0:01:15.6]} 32... Nxb1 {[%clk 0:01:07.9]} 33.
Nxe5 {[%clk 0:01:16.1]} 33... Nc3 {[%clk 0:01:08.5]} 34. Bc4 {[%clk 0:01:15]}
34... Rd1# {[%clk 0:01:05.5]} 0-1